bitfinex-derivatives/quotes_BTCF0:USTF0_20250827
["timestamp","ask_amount","ask_price","bid_price","bid_amount"]
[1756326289381,0.0893943,111850.0,111830.0,2.09566]
[1756326289581,0.0893817,111860.0,111850.0,0.12458]
[1756326289785,0.0893817,111860.0,111850.0,0.16697]
[1756326290084,0.4501817,111860.0,111850.0,0.04239]
[1756326290291,0.0893775,111870.0,111860.0,0.04239]
[1756326290492,0.4501724,111880.0,111870.0,0.04239]
[1756326290884,0.0893738,111870.0,111860.0,0.3608]
[1756326291084,0.0893738,111870.0,111860.0,1.61012]
[1756326291281,0.0893897,111850.0,111840.0,0.41152]
[1756326291484,0.0893977,111840.0,111810.0,0.04239]
[1756326291686,0.0894217,111810.0,111800.0,0.01996807]
[1756326291993,0.0894217,111810.0,111790.0,1.61012]
[1756326291994,0.0897397,111800.0,111790.0,1.61012]
[1756326292195,0.0897397,111800.0,111780.0,0.0001]
[1756326292196,0.0897477,111790.0,111780.0,0.0001]
[1756326292399,0.0894457,111780.0,111770.0,6.313e-05]
[1756326292587,0.0897637,111770.0,111760.0,0.01955973]
[1756326292792,0.7005637,111770.0,111760.0,0.01924973]
[1756326292993,0.7005637,111770.0,111760.0,0.5307503]
[1756326293191,0.7005637,111770.0,111760.0,0.4479606]
[1756326293391,0.0895018,111710.0,111700.0,0.06215102]
[1756326293591,0.4503963,111720.0,111700.0,0.13215102]
[1756326293794,0.0895938,111720.0,111710.0,0.09321]
[1756326293986,0.0001,111730.0,111710.0,0.14386]
[1756326294186,0.0001,111730.0,111710.0,0.4309]
[1756326294187,0.0894938,111720.0,111710.0,0.4309]
[1756326294393,0.450392,111730.0,111720.0,0.09311]
[1756326294694,0.0001,111740.0,111730.0,0.16697]
[1756326294894,0.4503714,111750.0,111740.0,0.04239]
[1756326295098,0.4502714,111750.0,111740.0,0.11239]
[1756326295296,0.4502714,111750.0,111740.0,0.07]
[1756326295500,0.0894714,111750.0,111740.0,0.11239]
[1756326295694,0.3609,111760.0,111740.0,0.47319]
[1756326296004,0.0001,111760.0,111750.0,0.04239]
[1756326296293,0.4503563,111770.0,111760.0,0.04239]
[1756326296499,0.4503482,111780.0,111770.0,0.04239]
[1756326296705,0.01822576,111790.0,111780.0,0.09311]
[1756326296901,0.01812576,111790.0,111780.0,0.59777]
[1756326297097,0.35756346,111790.0,111780.0,0.4308]
[1756326297404,0.0001,111800.0,111790.0,0.16697]
[1756326297597,0.0894377,111790.0,111780.0,2.00207]
[1756326297794,0.0894377,111790.0,111780.0,2.07207]
[1756326297993,0.0895325,111800.0,111790.0,0.04239]
[1756326298195,0.1075325,111800.0,111790.0,0.07]
[1756326298595,0.1158325,111800.0,111790.0,0.4308]
[1756326298790,0.3708225,111800.0,111790.0,0.04606]
[1756326299094,0.1075325,111800.0,111790.0,0.04606]
[1756326299498,0.1158325,111800.0,111790.0,0.04606]
[1756326299700,0.3708225,111800.0,111790.0,0.04606]
[1756326299912,0.08943,111800.0,111780.0,0.3608]
[1756326300098,0.08953,111800.0,111780.0,0.40632]
[1756326300295,0.08953,111800.0,111770.0,0.41446]
[1756326300296,0.089446,111780.0,111770.0,0.0001]
[1756326300497,0.102744,111770.0,111760.0,0.0001]
[1756326300696,0.102744,111770.0,111750.0,0.0001]
[1756326300697,0.01329,111760.0,111750.0,0.0001]
[1756326300897,0.01329,111760.0,111740.0,0.0001]
[1756326300898,0.10276,111750.0,111740.0,0.0001]
[1756326301104,0.4585704,111750.0,111730.0,0.40642]
[1756326301301,0.0001,111750.0,111740.0,0.53828]
[1756326301614,0.3608,111800.0,111750.0,0.08947]
[1756326301800,0.0894332,111800.0,111790.0,0.04552]
[1756326302000,0.4502263,111810.0,111790.0,0.05356]
[1756326302310,0.46833754,111840.0,111810.0,0.17748]
[1756326302614,0.08943,111800.0,111790.0,0.41436]
[1756326302795,0.089422,111810.0,111800.0,0.05356]
[1756326303002,0.089422,111810.0,111790.0,0.3608]
[1756326303003,0.00017,111800.0,111790.0,0.3608]
[1756326303198,0.0894241,111810.0,111790.0,0.49276]
[1756326303503,0.08943,111800.0,111790.0,0.40632]
[1756326303806,0.0894329,111800.0,111780.0,0.40642]
[1756326303999,0.089438,111790.0,111780.0,0.04562]
[1756326304306,0.0896,111800.0,111790.0,0.04552]
[1756326304604,0.0979,111800.0,111790.0,0.3608]
[1756326304907,0.0979027,111800.0,111780.0,0.40642]
[1756326305206,0.4502172,111820.0,111800.0,0.13196]
[1756326305401,0.4502113,111830.0,111820.0,0.04552]
[1756326305602,0.089422,111810.0,111800.0,0.49276]
[1756326305904,0.089422,111810.0,111790.0,2.0692]
[1756326306105,0.08943,111800.0,111790.0,0.41436]
[1756326306306,0.08943,111800.0,111790.0,0.40632]
[1756326306505,0.0894379,111790.0,111780.0,0.40642]
[1756326306706,0.0894379,111790.0,111780.0,0.04552]
[1756326307416,0.0894379,111790.0,111780.0,0.45988]
[1756326307605,0.0894355,111800.0,111790.0,0.09908]
[1756326308002,0.0894262,111810.0,111800.0,0.17748]
[1756326308206,0.0894176,111820.0,111810.0,0.09908]
[1756326308515,0.37893464,111840.0,111830.0,0.04552]
[1756326308516,0.10753614,111840.0,111830.0,0.04552]
[1756326308708,0.0894055,111830.0,111820.0,0.09908]
[1756326309009,0.0894215,111810.0,111800.0,0.3608]
[1756326309218,0.0894295,111800.0,111790.0,0.3608]
[1756326309511,0.089426,111810.0,111800.0,0.09908]
[1756326309908,0.4502142,111820.0,111810.0,0.04552]
[1756326310201,0.0894302,111800.0,111790.0,0.40632]
[1756326310511,0.0894302,111800.0,111780.0,0.3609]
[1756326310512,0.0971882,111790.0,111780.0,0.3609]
[1756326310708,0.0971882,111790.0,111780.0,0.3608]
[1756326311020,0.0894382,111790.0,111780.0,0.45988]
[1756326311312,0.0894354,111800.0,111790.0,0.09908]
[1756326311514,0.0894354,111800.0,111790.0,0.45988]
[1756326311703,0.0894222,111810.0,111790.0,1.91764]
[1756326311905,0.0894302,111800.0,111790.0,1.91764]
[1756326312110,0.0971802,111800.0,111790.0,1.91764]
[1756326312308,0.0894302,111800.0,111790.0,2.01672]
[1756326312614,0.0894249,111810.0,111800.0,0.17748]
[1756326312810,0.0894186,111820.0,111810.0,0.17748]
[1756326313113,0.37893464,111840.0,111820.0,0.05356]
[1756326313301,0.10753284,111840.0,111830.0,0.17748]
[1756326313500,0.10753284,111840.0,111830.0,0.04552]
[1756326313704,0.72608284,111840.0,111810.0,1.963]
[1756326313906,0.0894062,111830.0,111820.0,0.04552]
[1756326314111,0.0894062,111830.0,111820.0,0.17748]
[1756326314506,0.0894062,111830.0,111820.0,0.04552]
[1756326314921,0.0894062,111830.0,111820.0,0.17748]
[1756326315104,0.0894062,111830.0,111820.0,0.04552]
[1756326315411,0.0894142,111820.0,111810.0,0.53828]
[1756326315615,0.0894142,111820.0,111810.0,2.1719822]
[1756326315909,0.46833284,111840.0,111830.0,0.04552]
[1756326316105,0.10753284,111840.0,111830.0,0.04552]
[1756326316313,0.0894062,111830.0,111820.0,2.07916]
[1756326316620,0.0894062,111830.0,111820.0,0.53828]
[1756326316808,0.0894062,111830.0,111820.0,0.45988]
[1756326317210,0.0894062,111830.0,111820.0,0.40632]
[1756326317511,0.10753734,111840.0,111820.0,0.7002143]
[1756326317717,0.01813464,111840.0,111830.0,0.6276863]
[1756326317910,0.10753294,111840.0,111830.0,0.3608]
[1756326318112,0.0971643,111820.0,111790.0,2.0493973]
[1756326318412,0.0894223,111810.0,111800.0,0.04552]
[1756326318808,0.0894303,111800.0,111790.0,1.59112]
[1756326319014,0.0894303,111800.0,111790.0,2.08388]
[1756326319312,0.4502143,111820.0,111790.0,2.3242383]
[1756326319612,0.0894263,111810.0,111800.0,0.12392]
[1756326319914,0.1018383,111790.0,111780.0,0.0001]
[1756326320118,0.1018383,111790.0,111770.0,0.09918]
[1756326320119,0.0894463,111780.0,111770.0,0.09918]
[1756326320313,0.0894463,111780.0,111770.0,0.53828]
[1756326320511,0.0894463,111780.0,111770.0,0.09908]
[1756326321018,0.0894463,111780.0,111770.0,0.17748]
[1756326321218,0.4502463,111780.0,111770.0,0.04552]
[1756326321510,0.0894463,111780.0,111770.0,0.04552]
[1756326321716,0.0895383,111790.0,111780.0,0.17748]
[1756326321905,0.3608,111800.0,111780.0,0.17748]
[1756326321906,0.0895341,111800.0,111790.0,0.17748]
[1756326322106,0.0895264,111810.0,111800.0,0.17748]
[1756326322308,0.0894264,111810.0,111800.0,0.09908]
[1756326322607,0.3394264,111810.0,111800.0,0.04552]
[1756326322918,0.0894264,111810.0,111800.0,0.09908]
[1756326323118,0.0894264,111810.0,111800.0,0.17748]
[1756326323611,0.0894264,111810.0,111800.0,0.04552]
[1756326323808,0.0971803,111800.0,111790.0,1.94248]
[1756326324005,0.0971803,111800.0,111790.0,1.58168]
[1756326324213,0.0894383,111790.0,111780.0,1.5771]
[1756326324410,0.0894383,111790.0,111780.0,1.70896]
[1756326324610,0.0895345,111800.0,111790.0,0.17748]
[1756326324806,0.0895048,111840.0,111830.0,0.17748]
[1756326325013,0.04788135,111850.0,111840.0,0.0893944]
[1756326325014,0.04766194,111850.0,111840.0,0.0893944]
[1756326325208,0.0893829,111860.0,111840.0,0.7001944]
[1756326325418,0.0893823,111860.0,111850.0,0.3608]
[1756326325618,0.0893823,111860.0,111850.0,0.12637]
[1756326325920,0.0893823,111860.0,111850.0,0.48472]
[1756326326313,0.01792066,111880.0,111870.0,0.12637]
[1756326326516,0.01792066,111880.0,111870.0,2.62901]
[1756326326715,1.9501456,111910.0,111880.0,0.0893645]
[1756326326921,1.5893456,111910.0,111900.0,0.12392]
[1756326327117,1.5893456,111910.0,111900.0,2.01432]
[1756326327311,1.5893456,111910.0,111900.0,0.48472]
[1756326327518,1.8912356,111910.0,111900.0,0.40632]
[1756326327821,1.8912356,111910.0,111880.0,1.934]
[1756326327822,0.1412483,111890.0,111880.0,1.934]
[1756326328019,0.1412483,111890.0,111880.0,0.40632]
[1756326328218,0.1412643,111870.0,111850.0,0.3608]
[1756326328414,0.1412723,111860.0,111850.0,0.40632]
[1756326328617,0.0893903,111850.0,111840.0,0.3805442]
[1756326328817,0.1545303,111850.0,111840.0,0.3608]
[1756326329016,0.0894063,111830.0,111820.0,3.63378]
[1756326329216,0.1422863,111830.0,111820.0,3.63152]
[1756326329415,0.0894063,111830.0,111820.0,2.18668]
[1756326329611,0.0894063,111830.0,111820.0,2.10824]
[1756326329933,0.1422863,111830.0,111820.0,2.10824]
[1756326330218,0.0894019,111840.0,111830.0,0.12512]
[1756326330421,0.08938,111870.0,111850.0,0.07844]
[1756326330618,0.089372,111880.0,111860.0,1.88008]
[1756326330917,1.5,111910.0,111900.0,0.07844]
[1756326331120,1.5,111910.0,111900.0,0.48592]
[1756326331320,1.5,111910.0,111900.0,0.73592]
[1756326331518,0.0893223,111940.0,111910.0,0.0893411]
[1756326331715,0.10742467,111960.0,111950.0,0.12512]
[1756326332016,0.1076064,111970.0,111960.0,0.12512]
[1756326332520,0.1076064,111970.0,111940.0,0.40748]
[1756326332521,0.0893104,111950.0,111940.0,0.40748]
[1756326332727,0.0631104,111950.0,111940.0,1.92884]
[1756326333220,0.0893201,111940.0,111930.0,0.40748]
[1756326333424,0.1422064,111930.0,111920.0,0.40748]
[1756326333635,0.1422064,111930.0,111920.0,1.88128]
[1756326333932,0.1422144,111920.0,111910.0,1.51996]
[1756326334118,0.0893284,111930.0,111920.0,0.04668]
[1756326334316,0.2685044,111920.0,111910.0,0.3608]
[1756326334520,0.0893504,111900.0,111890.0,1.8776]
[1756326334724,0.0893504,111900.0,111880.0,1.747]
[1756326334725,0.0893584,111890.0,111880.0,1.747]
[1756326335022,0.0893549,111900.0,111890.0,0.12512]
[1756326335222,0.1422349,111900.0,111890.0,0.3608]
[1756326335431,0.0893685,111880.0,111870.0,1.87544]
[1756326335730,0.0893634,111890.0,111880.0,0.12512]
[1756326335915,0.0893634,111890.0,111880.0,0.48592]
[1756326336120,0.0893479,111910.0,111900.0,0.04668]
[1756326336322,0.0893575,111890.0,111880.0,0.40748]
[1756326336626,0.0893682,111880.0,111860.0,0.06628669]
[1756326336833,0.0893682,111880.0,111870.0,0.48592]
[1756326337127,0.2685444,111870.0,111860.0,0.38040669]
[1756326337332,0.0893694,111880.0,111870.0,0.04668]
[1756326337642,0.5511031,111900.0,111870.0,0.4968532]
[1756326337824,0.05288,111890.0,111870.0,0.30339]
[1756326338020,0.12629,111870.0,111820.0,0.0001]
[1756326338219,0.5764956,111830.0,111820.0,0.1201]
[1756326338521,0.0894136,111820.0,111810.0,0.0001]
[1756326338717,0.8265036,111820.0,111810.0,0.63]
[1756326338926,0.8265036,111820.0,111810.0,0.53]
[1756326339618,0.3394136,111820.0,111810.0,0.53]
[1756326339819,0.0894231,111810.0,111800.0,0.07854]
[1756326340024,0.4502231,111810.0,111800.0,0.17711]
[1756326340237,0.0894231,111810.0,111800.0,0.17711]
[1756326340435,0.3608,111840.0,111810.0,0.17711]
[1756326340641,0.4502071,111830.0,111820.0,0.04668]
[1756326340930,0.0894145,111820.0,111810.0,0.09877]
[1756326341126,0.4502145,111820.0,111810.0,0.09867]
[1756326341526,0.4502145,111820.0,111810.0,0.42711]
[1756326341933,0.0894145,111820.0,111810.0,0.42711]
[1756326342228,0.0894014,111840.0,111820.0,0.12512]
[1756326342427,0.0894014,111840.0,111820.0,1e-07]
[1756326342428,0.9901767,111830.0,111820.0,1e-07]
[1756326342623,0.0894307,111800.0,111790.0,1.61796]
[1756326342829,0.4502307,111800.0,111790.0,1.57128]
[1756326343024,0.0894307,111800.0,111790.0,1.74839]
[1756326343228,0.6146675,111830.0,111800.0,0.1881001]
[1756326343229,0.4502133,111830.0,111800.0,0.1881001]
[1756326343525,0.4501931,111850.0,111830.0,0.17711]
[1756326343827,0.0894147,111820.0,111810.0,0.3609]
[1756326344124,0.0894147,111820.0,111810.0,2.10523]
[1756326344331,0.0894147,111820.0,111810.0,0.04668]
[1756326344531,0.2685927,111810.0,111800.0,0.00014]
[1756326344726,0.6293927,111810.0,111800.0,4e-05]
[1756326344923,0.0894227,111810.0,111800.0,0.17715]
[1756326345232,0.0001,111820.0,111810.0,0.17711]
[1756326345426,0.4503092,111830.0,111820.0,0.09867]
[1756326345621,0.4503023,111840.0,111820.0,1.814]
[1756326345832,0.4502066,111830.0,111820.0,1.61068]
[1756326346630,0.2685846,111820.0,111810.0,0.0001]
[1756326346930,0.1423024,111810.0,111800.0,0.00018]
[1756326347228,0.4503182,111820.0,111800.0,0.17719]
[1756326347431,0.4502037,111840.0,111810.0,0.6273331]
[1756326347635,0.3609,111850.0,111830.0,0.17711]
[1756326347636,0.4501957,111850.0,111830.0,0.17711]
[1756326347930,0.4501957,111850.0,111840.0,0.17711]
[1756326348128,0.0893957,111850.0,111840.0,0.53791]
[1756326348329,0.0893957,111850.0,111830.0,0.40748]
[1756326348330,0.0893991,111840.0,111830.0,0.40748]
[1756326348533,0.0893964,111850.0,111840.0,0.17711]
[1756326348724,0.0893964,111850.0,111840.0,0.45947]
[1756326349031,0.0894044,111840.0,111830.0,0.45947]
[1756326349230,0.089379,111870.0,111860.0,0.17711]
[1756326349426,0.089379,111870.0,111860.0,1.72963]
[1756326349625,0.089379,111870.0,111860.0,1.5992]
[1756326349830,0.089379,111870.0,111860.0,1.55252]
[1756326350025,0.089379,111870.0,111860.0,1.5992]
[1756326350231,0.450179,111870.0,111860.0,1.5992]
[1756326350436,0.450179,111870.0,111860.0,1.72963]
[1756326350637,0.879349,111870.0,111860.0,1.55256]
[1756326350932,0.450179,111870.0,111860.0,0.2665332]
[1756326351237,0.8312752,111870.0,111860.0,4e-05]
[1756326351632,0.4501752,111870.0,111860.0,0.04672]
[1756326352027,0.4501752,111870.0,111860.0,0.17715]
[1756326352236,0.0893658,111890.0,111880.0,0.2664772]
[1756326352445,0.0893658,111890.0,111880.0,1.71955]
[1756326352631,0.0893592,111890.0,111880.0,0.09867]
[1756326352932,0.3608,111890.0,111870.0,1.63923]
[1756326353137,0.089363,111890.0,111880.0,0.17711]
[1756326353435,0.089363,111890.0,111870.0,0.3608]
[1756326353632,0.1422552,111870.0,111860.0,4e-05]
[1756326353930,0.2204752,111870.0,111860.0,1.53708]
[1756326354236,0.6293452,111870.0,111860.0,4e-05]
[1756326354439,0.0893752,111870.0,111860.0,0.17715]
[1756326354630,0.0893752,111870.0,111860.0,0.53795]
[1756326354936,0.6293452,111870.0,111860.0,4e-05]
[1756326355134,0.8793452,111870.0,111860.0,4e-05]
[1756326355434,0.0893752,111870.0,111860.0,0.17715]
[1756326355630,0.089363,111890.0,111870.0,0.0893719]
[1756326355827,0.01821405,111920.0,111900.0,0.17711]
[1756326356027,0.10744965,111920.0,111910.0,0.17711]
[1756326356230,0.0893432,111910.0,111890.0,0.40748]
[1756326356435,0.0893432,111910.0,111900.0,0.04668]
[1756326356636,0.0893432,111910.0,111900.0,0.09867]
[1756326356828,0.0893432,111910.0,111900.0,0.45947]
[1756326357333,0.0893432,111910.0,111900.0,0.17711]
[1756326358038,0.0893512,111900.0,111890.0,0.09867]
[1756326358236,0.5030232,111910.0,111900.0,0.2664612]
[1756326358237,0.0893466,111910.0,111900.0,0.2664612]
[1756326358437,0.0893466,111910.0,111900.0,0.53791]
[1756326358739,0.4501466,111910.0,111900.0,1.56828]
[1756326359033,0.0893466,111910.0,111900.0,1.62417]
[1756326359236,0.10745255,111920.0,111910.0,0.18484]
[1756326359531,0.01811405,111920.0,111910.0,0.6349833]
[1756326359736,0.10744935,111920.0,111910.0,0.54564]
[1756326360132,0.10744935,111920.0,111910.0,0.18484]
[1756326360337,0.0893432,111910.0,111900.0,0.18488]
[1756326360934,0.0893432,111910.0,111900.0,0.54568]
[1756326361139,0.10745395,111920.0,111910.0,0.18484]
[1756326361342,0.51519226,111950.0,111930.0,0.105]
[1756326361343,0.37869696,111950.0,111930.0,0.105]
[1756326361541,1.4421,111960.0,111950.0,0.2741513]
[1756326361836,0.0892993,111970.0,111960.0,0.04915]
[1756326361837,0.0892954,111970.0,111960.0,0.04915]
[1756326362035,0.0892876,111980.0,111970.0,0.04915]
[1756326362832,0.4500876,111980.0,111970.0,0.04915]
[1756326363032,0.0893,111970.0,111960.0,1.69408]
[1756326363339,1.5,111970.0,111960.0,2.1441833]
[1756326363534,0.0892874,111980.0,111970.0,0.07984]
[1756326363730,0.0892874,111980.0,111970.0,0.12899]
[1756326363930,0.3608,111990.0,111970.0,0.4992383]
[1756326364235,0.1676961,112020.0,112010.0,0.12899]
[1756326364236,0.0001,112020.0,112010.0,0.12899]
[1756326364436,0.01781564,112030.0,112020.0,0.12899]
[1756326364637,0.01781564,112030.0,112020.0,0.5790448]
[1756326364842,0.01781564,112030.0,112020.0,0.8290448]
[1756326365041,0.01781564,112030.0,112020.0,0.73979]
[1756326365238,1.5,112040.0,112030.0,0.12899]
[1756326365437,1.5892389,112040.0,112030.0,1.91235]
[1756326365637,1.6454789,112040.0,112030.0,0.04915]
[1756326366138,1.6454789,112040.0,112030.0,1.55047]
[1756326366341,1.5,112040.0,112030.0,1.63031]
[1756326366638,0.0001,112050.0,112040.0,0.08035]
[1756326366842,0.41714,112090.0,112050.0,0.07984]
[1756326367040,0.4499998,112090.0,112080.0,0.1294]
[1756326367445,0.4499998,112090.0,112080.0,0.04915]
[1756326367636,0.05624,112080.0,112060.0,0.00041]
[1756326367943,0.0892077,112080.0,112070.0,0.04956]
[1756326368141,0.05624,112080.0,112070.0,0.04915]
[1756326368335,0.3954477,112080.0,112060.0,1.49544]
[1756326368535,0.05624,112050.0,112040.0,0.3608]
[1756326368735,0.05624,112060.0,112050.0,0.04915]
[1756326368942,0.0892316,112050.0,112040.0,0.04915]
[1756326369137,0.5062579,112070.0,112050.0,0.08025]
[1756326369337,0.0892236,112060.0,112050.0,0.04956]
[1756326369538,0.1454636,112060.0,112040.0,0.3608]
[1756326369743,1.49959,112050.0,112040.0,0.5794396]
[1756326369943,0.3608,112080.0,112040.0,0.3608]
[1756326370146,0.0892234,112070.0,112050.0,0.12899]
[1756326370343,0.0892236,112060.0,112050.0,0.12899]
[1756326370641,0.0892316,112050.0,112040.0,0.40995]
[1756326370846,0.1925516,112050.0,112040.0,0.3608]
[1756326371041,0.4500268,112060.0,112050.0,0.04915]
[1756326371341,0.3608,112080.0,112050.0,0.3608]
[1756326371546,1.5,112070.0,112060.0,0.48979]
[1756326371742,1.5,112070.0,112060.0,1.97895]
[1756326372043,1.5,112070.0,112060.0,2.3181737]
[1756326372243,1.5,112070.0,112060.0,2.22895]
[1756326372542,0.0892079,112080.0,112070.0,0.04915]
[1756326372743,0.01800092,112100.0,112090.0,0.12899]
[1756326372942,0.01800092,112100.0,112090.0,0.48539]
[1756326373248,0.4500639,112140.0,112090.0,0.48539]
[1756326373249,0.0001,112140.0,112110.0,0.0891836]
[1756326373547,0.089176,112120.0,112110.0,0.44064]
[1756326373741,0.145416,112120.0,112100.0,0.44064]
[1756326373941,0.089178,112120.0,112100.0,0.44064]
[1756326374241,0.2708519,112100.0,112090.0,1.49044]
[1756326374435,0.2708598,112090.0,112080.0,0.01951373]
[1756326374837,0.43914,112120.0,112090.0,0.07984]
[1756326375043,0.1925039,112110.0,112090.0,0.04915]
[1756326375236,0.1454319,112100.0,112080.0,0.42946373]
[1756326375438,0.2708598,112090.0,112080.0,0.01951373]
[1756326375639,0.8816598,112090.0,112080.0,0.01951373]
[1756326375843,0.1675508,112080.0,112060.0,3.26040637]
[1756326376038,0.3608,112070.0,112060.0,3.20899]
[1756326376240,0.0892026,112090.0,112080.0,0.04915]
[1756326376439,0.0892026,112090.0,112080.0,0.1485]
[1756326376645,0.0892026,112090.0,112080.0,0.06866]
[1756326376846,0.0892157,112070.0,112060.0,1.9728941]
[1756326377049,0.18166,112080.0,112060.0,1.6316041]
[1756326377239,0.2708703,112080.0,112060.0,1.5629441]
[1756326377444,0.089203,112090.0,112070.0,0.5093]
[1756326377647,0.0892157,112070.0,112060.0,1.5629441]
[1756326377946,0.2708996,112040.0,112030.0,4e-05]
[1756326378350,0.5208996,112040.0,112030.0,4e-05]
[1756326378552,0.1675876,112030.0,112020.0,0.01959759]
[1756326378744,0.46412,112040.0,112020.0,0.01959759]
[1756326378948,0.5533599,112040.0,112020.0,0.52893759]
[1756326379146,0.0892476,112030.0,112020.0,0.47978759]
[1756326379450,0.2709076,112030.0,112020.0,0.01959759]
[1756326379646,0.3608,112050.0,112040.0,0.04915]
[1756326379845,0.4500317,112050.0,112040.0,1.48364]
[1756326380044,0.5533517,112050.0,112040.0,1.48364]
[1756326380445,0.8816917,112050.0,112040.0,1.48364]
[1756326380645,0.10332,112040.0,112020.0,1.65105759]
[1756326380846,0.0892476,112030.0,112020.0,1.65105759]
[1756326381041,0.4500317,112050.0,112040.0,0.0687]
[1756326381242,0.3608,112050.0,112020.0,1.93201759]
[1756326381543,0.2709076,112030.0,112010.0,0.3608]
[1756326381749,0.2709235,112010.0,112000.0,1.50032226]
[1756326381946,0.6317235,112010.0,112000.0,0.02000226]
[1756326382154,0.0892795,111990.0,111980.0,0.07087705]
[1756326382350,0.0892875,111980.0,111970.0,0.01958991]
[1756326382551,0.0892875,111980.0,111950.0,0.3608]
[1756326382552,0.1926234,111960.0,111950.0,0.3608]
[1756326382751,0.2709634,111960.0,111950.0,0.3608]
[1756326382954,0.10332,111960.0,111950.0,0.3608]
[1756326383144,0.4500959,111970.0,111950.0,0.8849484]
[1756326383352,0.54246,111980.0,111970.0,0.105]
[1756326383353,0.0892875,111980.0,111970.0,0.105]
[1756326383546,0.3608,111990.0,111970.0,0.18484]
[1756326383747,0.089268,112010.0,112000.0,0.105]
[1756326384150,0.40788,112020.0,112000.0,0.105]
[1756326384151,0.5533791,112020.0,112000.0,0.105]
[1756326384353,0.0892635,112010.0,112000.0,0.18484]
[1756326384657,0.0892635,112010.0,111990.0,0.3608]
[1756326384658,0.04708,112000.0,111990.0,0.3608]
[1756326384955,0.04708,112000.0,111980.0,1.4774]
[1756326384956,0.631735,112000.0,111980.0,1.4774]
[1756326385161,0.2709474,111990.0,111970.0,1.47432]
[1756326385353,0.3608,112000.0,111980.0,0.0892876]
[1756326385554,0.2709454,111990.0,111970.0,0.3608]
[1756326385753,0.0893754,112000.0,111970.0,1.6420154]
[1756326385964,0.0893716,112000.0,111990.0,0.05585]
[1756326386251,0.0892955,111970.0,111950.0,2.1054655]
[1756326386457,0.18176,111970.0,111950.0,2.0256274]
[1756326386663,0.0001,111970.0,111960.0,0.6349435]
[1756326386863,0.43924,112000.0,111970.0,0.2741355]
[1756326386864,0.0001,111980.0,111970.0,0.2741355]
[1756326387057,0.0001,111990.0,111980.0,0.2741276]
[1756326387254,0.40798,112000.0,111970.0,1.57276]
[1756326387460,0.40798,112000.0,111990.0,0.18484]
[1756326387461,0.4501716,112000.0,111990.0,0.18484]
[1756326387678,0.10332,112000.0,111980.0,0.41665]
[1756326387963,0.2710363,112000.0,111980.0,0.5550875]
[1756326388161,0.0001,112000.0,111990.0,0.5059295]
[1756326388360,0.0892715,112000.0,111990.0,0.54564]
[1756326388762,0.0893681,112010.0,112000.0,0.13247]
[1756326389060,0.0892667,112010.0,112000.0,0.41658]
[1756326389258,0.0892635,112010.0,112000.0,0.10483]
[1756326389455,0.0892635,112010.0,112000.0,0.46563]
[1756326389662,0.0892715,112000.0,111990.0,1.95379]
[1756326389864,0.0893677,112010.0,111990.0,2.0921195]
[1756326390063,0.0893635,112010.0,112000.0,0.6315915]
[1756326390266,0.0892715,112000.0,111990.0,1.8771]
[1756326390568,0.1374973,112010.0,111990.0,1.9663795]
[1756326390773,0.0892715,112000.0,111990.0,1.92615]
[1756326390973,0.0892715,112000.0,111990.0,0.46563]
[1756326391173,0.0892715,112000.0,111990.0,0.3608]
[1756326391362,0.1374015,112000.0,111990.0,0.41658]
[1756326391570,0.1924315,112000.0,111990.0,0.3608]
[1756326391764,0.3609,112010.0,112000.0,0.2707915]
[1756326391765,0.0001,112010.0,112000.0,0.2707915]
[1756326391968,0.4500589,112020.0,112010.0,0.2707835]
[1756326391969,0.0001,112020.0,112010.0,0.2707835]
[1756326392269,0.0892269,112060.0,112020.0,0.05674]
[1756326392270,0.0893285,112060.0,112020.0,0.05674]
[1756326392463,0.0892237,112060.0,112040.0,0.87635293]
[1756326392665,0.46396,112070.0,112040.0,0.09706]
[1756326392666,0.0892317,112050.0,112040.0,0.09706]
[1756326392866,0.089229,112060.0,112040.0,1.91158]
[1756326393070,0.1923917,112050.0,112040.0,0.3608]
[1756326393472,0.2719196,112040.0,112030.0,0.3608]
[1756326393678,1.6373776,112030.0,112020.0,0.3608]
[1756326393978,1.5,112030.0,112020.0,0.5067956]
[1756326394173,1.5892476,112030.0,112020.0,0.41754]
[1756326394375,0.1373856,112020.0,112010.0,2.05828]
[1756326394673,0.04813,112020.0,112010.0,2.05828]
[1756326394867,0.1924156,112020.0,112010.0,1.69748]
[1756326395175,0.2719435,112010.0,112000.0,0.02000315]
[1756326395481,0.0892759,112000.0,111990.0,0.3808]
[1756326395671,0.0892759,112000.0,111990.0,0.47786]
[1756326395979,0.1374059,112000.0,111990.0,0.3608]
[1756326396278,1.5892513,112030.0,112020.0,0.02]
[1756326396777,1.5,112030.0,112020.0,0.47786]
[1756326397075,1.5,112030.0,112020.0,1.14635293]
[1756326397579,1.5892476,112030.0,112020.0,0.43754]
[1756326397877,0.1373856,112020.0,112010.0,1.80228]
[1756326398274,1.637381,112030.0,112020.0,0.02]
[1756326398580,1.5,112030.0,112020.0,0.47786]
[1756326398781,1.5892476,112030.0,112020.0,0.47786]
[1756326398967,0.1924156,112020.0,112010.0,1.80228]
[1756326399373,0.1373856,112020.0,112010.0,1.80228]
[1756326399575,0.1924156,112020.0,112010.0,1.80228]
[1756326399867,0.04813,112000.0,111990.0,1.81588]
[1756326400078,0.6108,112020.0,112000.0,0.07674]
[1756326400079,0.04813,112020.0,112000.0,0.07674]
[1756326400382,0.0892636,112010.0,112000.0,0.45786]
[1756326400574,1.5,112030.0,112010.0,0.04032]
[1756326400880,0.0892556,112020.0,112010.0,0.43754]
[1756326401185,0.0892556,112020.0,112010.0,0.02]
[1756326401376,0.0892635,112010.0,112000.0,1.79432]
[1756326401679,0.1924235,112010.0,112000.0,1.43352]
[1756326402379,0.1374015,112000.0,111990.0,0.3808]
[1756326402575,0.0892658,112010.0,112000.0,0.11706]
[1756326402878,0.0892658,112010.0,112000.0,0.47786]
[1756326403177,1.5,112030.0,112020.0,0.2063156]
[1756326403373,1.5,112030.0,112020.0,2.3521556]
[1756326403683,1.5892476,112030.0,112020.0,2.2629]
[1756326403980,1.5892476,112030.0,112020.0,2.2631]